{"text_format":"1","workbook":"xlsx","n_sheets":5,"sheets":["Deckblatt","über 3,5 - 8,5 t","über 8,5 - 18 t","über 18 - 26 t","über 26 t"],"not_rendered":{"charts":0,"images":1,"macros":1,"external_links":0,"defined_names":0,"comments":0,"pivot_tables":0},"unopened":[],"bounds":{"document_bytes":16777216,"sheet_cells":100000,"rows_first":2000,"rows_last":500,"rows_between":2000,"halvings":0,"cell_chars":16384,"cell_head_chars":4096},"cells_cut":0,"cells_raw":0,"read":"whole","date_system":"1900"}

{"sheet":"Deckblatt","index":0,"n_rows":30,"n_cols":8,"rows_kept":30,"cut":false,"hidden":false,"merged":[[14,1,14,8],[13,1,13,8],[15,1,15,3],[15,5,15,8],[16,1,16,8],[29,2,29,3],[29,7,29,8],[17,1,17,8],[19,3,19,8],[21,3,21,8],[20,3,20,8],[26,1,26,8]]}
[]
[]
[]
[]
[]
[]
[]
[]
[]
[null,null,"Anno civile",null,null,null,null,"Vers. 2024"]
[null,null,"(periodo di tassazione)"]
[]
[]
[null,"Dichiarazione di restituzione per i veicoli soggetti alla TFTP impiegati anche nel traffico di                                           linea (tabelle 2 - 5)"]
[null,"Informazione: tra l’altro non fanno parte corse di prova, trasporti di scolari e corse effettuate per manutenzione o collaudo del veicolo."]
[null,"La dichiarazione deve essere inoltrata entro il 30 giugno",null,null,{"$f":"IF(SUM(D10+1)<2,\"    \",SUM(D10+1))","v":"    "},"all'Ufficio federale della dogana e della sicurezza dei confini UDSC, "]
[null,"Tasse sulla circolazione, 3003 Berna. In caso contrario la domanda di restituzione verrà respinta (art. 78 OTTP)."]
[]
[]
[null,"Ditta:"]
[null,"N° della concessione :"]
[null,"Indirizzo:"]
[]
[null,"Quantità di veicoli:",null,null,null,null,"Totale: ",{"$f":"IF('über 3,5 - 8,5 t'!L123+'über 8,5 - 18 t'!L125+'über 18 - 26 t'!L129+'über 26 t'!L129<10.01,0,'über 3,5 - 8,5 t'!L123+'über 8,5 - 18 t'!L125+'über 18 - 26 t'!L129+'über 26 t'!L129)","v":0}]
[null,"(peso totale superiore a 3,5 t)"]
[]
[null,"Attesto l'esattezza dei dati forniti, corrispondenti ai dati contabili. Prendo atto del fatto che una dichiarazione errata costituisce un'infrazione a tenore dell'art. 20 cpv. 1 LTTP."]
[]
[]
[null,"Data: ",null,null,null,null,"Firma:"]

{"sheet":"über 3,5 - 8,5 t","index":1,"n_rows":125,"n_cols":12,"rows_kept":125,"cut":false,"hidden":false,"merged":[]}
[]
[]
[]
[]
[]
["Dichiarazione di restituzione per i veicoli d'un peso totale superiore a 3,5 t ma non eccedente 8,5 t (aliquota fr. 2200,-)"]
[]
["Numero di ","Targa","Marca","Km dal 1.01","Km dal 31.12","Km","Km","percento","mc",null,"Totale "]
["matricola",null,null,"o alla data","o alla data","annui","nel",null,"del","al","giorni","Importo"]
["secondo licenza",null,null,"della mc 2)","della mfc 3)",null,"traffico",null,"(g.m.a 1)"]
["di circolazione",null,null,null,null,null,"di linea"]
[null,null,null,null,null,{"$f":"E12-D12","v":0},null,{"$f":" IF(F12>0,ROUNDUP(G12/F12,6),0)","v":0},null,null,{"$f":"IF(SUM(J12-I12+1)>365,365,SUM(J12-I12+1))","v":1},{"$f":"ROUNDUP(K12*2200*H12/365*20,0)/20","v":0}]
[null,null,null,null,null,0,null,0,null,null,1,{"$f":"ROUNDUP(K13*2200*H13/365*20,0)/20","v":0}]
[null,null,null,null,null,0,null,0,null,null,1,0]
[null,null,null,null,null,0,null,0,null,null,1,0]
[null,null,null,null,null,0,null,0,null,null,1,0]
[null,null,null,null,null,0,null,0,null,null,1,0]
[null,null,null,null,null,{"$f":"E18-D18","v":0},null,{"$f":" IF(F18>0,ROUNDUP(G18/F18,6),0)","v":0},null,null,{"$f":"IF(SUM(J18-I18+1)>365,365,SUM(J18-I18+1))","v":1},0]
[null,null,null,null,null,{"$f":"E19-D19","v":0},null,{"$f":" IF(F19>0,ROUNDUP(G19/F19,6),0)","v":0},null,null,{"$f":"IF(SUM(J19-I19+1)>365,365,SUM(J19-I19+1))","v":1},0]
[null,null,null,null,null,{"$f":"E20-D20","v":0},null,{"$f":" IF(F20>0,ROUNDUP(G20/F20,6),0)","v":0},null,null,{"$f":"IF(SUM(J20-I20+1)>365,365,SUM(J20-I20+1))","v":1},0]
[null,null,null,null,null,{"$f":"E21-D21","v":0},null,{"$f":" IF(F21>0,ROUNDUP(G21/F21,6),0)","v":0},null,null,{"$f":"IF(SUM(J21-I21+1)>365,365,SUM(J21-I21+1))","v":1},0]
[null,null,null,null,null,{"$f":"E22-D22","v":0},null,{"$f":" IF(F22>0,ROUNDUP(G22/F22,6),0)","v":0},null,null,{"$f":"IF(SUM(J22-I22+1)>365,365,SUM(J22-I22+1))","v":1},0]
[null,null,null,null,null,0,null,0,null,null,1,0]
[null,null,null,null,null,0,null,0,null,null,1,0]
[null,null,null,null,null,0,null,0,null,null,1,0]
[null,null,null,null,null,0,null,0,null,null,1,0]
[null,null,null,null,null,0,null,0,null,null,1,0]
[null,null,null,null,null,0,null,0,null,null,1,0]
[null,null,null,null,null,0,null,0,null,null,1,0]
[null,null,null,null,null,0,null,0,null,null,1,0]
[null,null,null,null,null,0,null,0,null,null,1,0]
[null,null,null,null,null,0,null,0,null,null,1,0]
[null,null,null,null,null,0,null,0,null,null,1,0]
[null,null,null,null,null,0,null,0,null,null,1,0]
[null,null,null,null,null,0,null,0,null,null,1,{"$f":"ROUNDUP(K35*2200*H35/365*20,0)/20","v":0}]
[]
["1) = giorno, mese, anno",null,null,null,null,null,null,null,null,"Total",null,{"$f":"SUM(L12:L35)","v":0}]
["2) = messa in circolazione"]
["3) = messa fuori circolazione"]
[]
["Numero di ","Targa","Marca","Km dal 1.01","Km dal 31.12","Km","Km","percento","mc",null,"Totale "]
["matricola",null,null,"o alla data","o alla data","annui","nel",null,"del","al","giorni","Importo"]
["secondo licenza",null,null,"della mc 2)","della mfc 3)",null,"traffico",null,"(g.m.a 1)"]
["di circolazione",null,null,null,null,null,"di linea"]
[null,null,null,null,null,{"$f":"E45-D45","v":0},null,{"$f":" IF(F45>0,ROUNDUP(G45/F45,6),0)","v":0},null,null,{"$f":"IF(SUM(J45-I45+1)>365,365,SUM(J45-I45+1))","v":1},{"$f":"ROUNDUP(K45*2200*H45/365*20,0)/20","v":0}]
[null,null,null,null,null,{"$f":"E46-D46","v":0},null,{"$f":" IF(F46>0,ROUNDUP(G46/F46,6),0)","v":0},null,null,{"$f":"IF(SUM(J46-I46+1)>365,365,SUM(J46-I46+1))","v":1},{"$f":"ROUNDUP(K46*2200*H46/365*20,0)/20","v":0}]
[null,null,null,null,null,{"$f":"E47-D47","v":0},null,{"$f":" IF(F47>0,ROUNDUP(G47/F47,6),0)","v":0},null,null,{"$f":"IF(SUM(J47-I47+1)>365,365,SUM(J47-I47+1))","v":1},0]
[null,null,null,null,null,0,null,0,null,null,1,0]
[null,null,null,null,null,0,null,0,null,null,1,0]
[null,null,null,null,null,0,null,0,null,null,1,0]
[null,null,null,null,null,0,null,0,null,null,1,0]
[null,null,null,null,null,0,null,0,null,null,1,0]
[null,null,null,null,null,0,null,0,null,null,1,0]
[null,null,null,null,null,0,null,0,null,null,1,0]
[null,null,null,null,null,0,null,0,null,null,1,0]
[null,null,null,null,null,{"$f":"E56-D56","v":0},null,{"$f":" IF(F56>0,ROUNDUP(G56/F56,6),0)","v":0},null,null,{"$f":"IF(SUM(J56-I56+1)>365,365,SUM(J56-I56+1))","v":1},0]
[null,null,null,null,null,0,null,0,null,null,1,0]
[null,null,null,null,null,0,null,0,null,null,1,0]
[null,null,null,null,null,0,null,0,null,null,1,0]
[null,null,null,null,null,0,null,0,null,null,1,0]
[null,null,null,null,null,0,null,0,null,null,1,0]
[null,null,null,null,null,0,null,0,null,null,1,0]
[null,null,null,null,null,0,null,0,null,null,1,0]
[null,null,null,null,null,0,null,0,null,null,1,0]
[null,null,null,null,null,{"$f":"E65-D65","v":0},null,{"$f":" IF(F65>0,ROUNDUP(G65/F65,6),0)","v":0},null,null,{"$f":"IF(SUM(J65-I65+1)>365,365,SUM(J65-I65+1))","v":1},0]
[null,null,null,null,null,0,null,0,null,null,1,0]
[null,null,null,null,null,0,null,0,null,null,1,0]
[null,null,null,null,null,0,null,0,null,null,1,0]
[null,null,null,null,null,0,null,0,null,null,1,0]
[null,null,null,null,null,0,null,0,null,null,1,0]
[null,null,null,null,null,0,null,0,null,null,1,0]
[null,null,null,null,null,0,null,0,null,null,1,0]
[null,null,null,null,null,0,null,0,null,null,1,0]
[null,null,null,null,null,0,null,0,null,null,1,0]
[null,null,null,null,null,0,null,0,null,null,1,0]
[null,null,null,null,null,0,null,0,null,null,1,{"$f":"ROUNDUP(K76*2200*H76/365*20,0)/20","v":0}]
[]
[null,null,null,null,null,null,null,null,null,null,null,{"$f":"SUM(L42)","v":0}]
[]
["1) = giorno, mese, anno",null,null,null,null,null,null,null,null,"Total",null,{"$f":"L78+L37","v":0}]
["2) = messa in circolazione"]
["3) = messa fuori circolazione"]
[]
["Numero di ","Targa","Marca","Km dal 1.01","Km dal 31.12","Km","Km","percento","mc",null,"Totale "]
["matricola",null,null,"o alla data","o alla data","annui","nel",null,"del","al","giorni","Importo"]
["secondo licenza",null,null,"della mc 2)","della mfc 3)",null,"traffico",null,"(g.m.a 1)"]
["di circolazione",null,null,null,null,null,"di linea"]
[null,null,null,null,null,{"$f":"E88-D88","v":0},null,{"$f":" IF(F88>0,ROUNDUP(G88/F88,6),0)","v":0},null,null,{"$f":"IF(SUM(J88-I88+1)>365,365,SUM(J88-I88+1))","v":1},{"$f":"ROUNDUP(K88*2200*H88/365*20,0)/20","v":0}]
[null,null,null,null,null,0,null,0,null,null,1,{"$f":"ROUNDUP(K89*2200*H89/365*20,0)/20","v":0}]
[null,null,null,null,null,0,null,0,null,null,1,0]
[null,null,null,null,null,0,null,0,null,null,1,0]
[null,null,null,null,null,0,null,0,null,null,1,0]
[null,null,null,null,null,0,null,0,null,null,1,0]
[null,null,null,null,null,0,null,0,null,null,1,0]
[null,null,null,null,null,0,null,0,null,null,1,0]
[null,null,null,null,null,0,null,0,null,null,1,0]
[null,null,null,null,null,0,null,0,null,null,1,0]
[null,null,null,null,null,0,null,0,null,null,1,0]
[null,null,null,null,null,0,null,0,null,null,1,0]
[null,null,null,null,null,0,null,0,null,null,1,0]
[null,null,null,null,null,0,null,0,null,null,1,0]
[null,null,null,null,null,0,null,0,null,null,1,0]
[null,null,null,null,null,{"$f":"E103-D103","v":0},null,{"$f":" IF(F103>0,ROUNDUP(G103/F103,6),0)","v":0},null,null,{"$f":"IF(SUM(J103-I103+1)>365,365,SUM(J103-I103+1))","v":1},0]
[null,null,null,null,null,{"$f":"E104-D104","v":0},null,{"$f":" IF(F104>0,ROUNDUP(G104/F104,6),0)","v":0},null,null,{"$f":"IF(SUM(J104-I104+1)>365,365,SUM(J104-I104+1))","v":1},0]
[null,null,null,null,null,{"$f":"E105-D105","v":0},null,{"$f":" IF(F105>0,ROUNDUP(G105/F105,6),0)","v":0},null,null,{"$f":"IF(SUM(J105-I105+1)>365,365,SUM(J105-I105+1))","v":1},0]
[null,null,null,null,null,{"$f":"E106-D106","v":0},null,{"$f":" IF(F106>0,ROUNDUP(G106/F106,6),0)","v":0},null,null,{"$f":"IF(SUM(J106-I106+1)>365,365,SUM(J106-I106+1))","v":1},0]
[null,null,null,null,null,{"$f":"E107-D107","v":0},null,{"$f":" IF(F107>0,ROUNDUP(G107/F107,6),0)","v":0},null,null,{"$f":"IF(SUM(J107-I107+1)>365,365,SUM(J107-I107+1))","v":1},0]
[null,null,null,null,null,{"$f":"E108-D108","v":0},null,{"$f":" IF(F108>0,ROUNDUP(G108/F108,6),0)","v":0},null,null,{"$f":"IF(SUM(J108-I108+1)>365,365,SUM(J108-I108+1))","v":1},0]
[null,null,null,null,null,0,null,0,null,null,1,0]
[null,null,null,null,null,0,null,0,null,null,1,0]
[null,null,null,null,null,0,null,0,null,null,1,0]
[null,null,null,null,null,0,null,0,null,null,1,0]
[null,null,null,null,null,0,null,0,null,null,1,0]
[null,null,null,null,null,0,null,0,null,null,1,0]
[null,null,null,null,null,0,null,0,null,null,1,0]
[null,null,null,null,null,0,null,0,null,null,1,0]
[null,null,null,null,null,0,null,0,null,null,1,0]
[null,null,null,null,null,0,null,0,null,null,1,0]
[null,null,null,null,null,0,null,0,null,null,1,{"$f":"ROUNDUP(K119*2200*H119/365*20,0)/20","v":0}]
[]
[null,null,null,null,null,null,null,null,null,null,null,{"$f":"SUM(L85)","v":0}]
[]
["1) = giorno, mese, anno",null,null,null,null,null,null,null,null,"Total",null,{"$f":"L121+L78+L37","v":0}]
["2) = messa in circolazione"]
["3) = messa fuori circolazione"]

{"sheet":"über 8,5 - 18 t","index":2,"n_rows":126,"n_cols":12,"rows_kept":126,"cut":false,"hidden":false,"merged":[]}
[]
[]
[]
[]
[]
["Dichiarazione di restituzione per i veicoli d'un peso totale superiore a 8,5 t ma non eccedente 19,5 t (aliquota fr. 3300,-)"]
[]
["Numero di ","Targa","Marca","Km dal 1.01","Km dal 31.12","Km","Km","percento","mc",null,"Totale "]
["matricola",null,null,"o alla data","o alla data","annui","nel",null,"del","al","giorni","Importo"]
["secondo licenza",null,null,"della mc 2)","della mfc 3)",null,"traffico",null,"(g.m.a 1)"]
["di circolazione",null,null,null,null,null,"di linea"]
[null,null,null,null,null,{"$f":"E12-D12","v":0},null,{"$f":" IF(F12>0,ROUNDUP(G12/F12,6),0)","v":0},null,null,{"$f":"IF(SUM(J12-I12+1)>365,365,SUM(J12-I12+1))","v":1},{"$f":"ROUNDUP(K12*3300*H12/365*20,0)/20","v":0}]
[null,null,null,null,null,0,null,0,null,null,1,{"$f":"ROUNDUP(K13*3300*H13/365*20,0)/20","v":0}]
[null,null,null,null,null,0,null,0,null,null,1,0]
[null,null,null,null,null,{"$f":"E15-D15","v":0},null,{"$f":" IF(F15>0,ROUNDUP(G15/F15,6),0)","v":0},null,null,{"$f":"IF(SUM(J15-I15+1)>365,365,SUM(J15-I15+1))","v":1},{"$f":"ROUNDUP(K15*3300*H15/365*20,0)/20","v":0}]
[null,null,null,null,null,0,null,0,null,null,1,0]
[null,null,null,null,null,0,null,0,null,null,1,0]
[null,null,null,null,null,0,null,0,null,null,1,0]
[null,null,null,null,null,0,null,0,null,null,1,0]
[null,null,null,null,null,0,null,0,null,null,1,0]
[null,null,null,null,null,0,null,0,null,null,1,0]
[null,null,null,null,null,0,null,0,null,null,1,0]
[null,null,null,null,null,0,null,0,null,null,1,0]
[null,null,null,null,null,0,null,0,null,null,1,0]
[null,null,null,null,null,0,null,0,null,null,1,0]
[null,null,null,null,null,0,null,0,null,null,1,0]
[null,null,null,null,null,0,null,0,null,null,1,0]
[null,null,null,null,null,0,null,0,null,null,1,0]
[null,null,null,null,null,0,null,0,null,null,1,0]
[null,null,null,null,null,0,null,0,null,null,1,0]
[null,null,null,null,null,0,null,0,null,null,1,0]
[null,null,null,null,null,0,null,0,null,null,1,0]
[null,null,null,null,null,0,null,0,null,null,1,0]
[null,null,null,null,null,0,null,0,null,null,1,0]
[null,null,null,null,null,0,null,0,null,null,1,0]
[null,null,null,null,null,0,null,0,null,null,1,{"$f":"ROUNDUP(K36*3300*H36/365*20,0)/20","v":0}]
[]
["1) = giorno, mese, anno"]
["2) = messa in circolazione",null,null,null,null,null,null,null,null,"Total",null,{"$f":"SUM(L12:L36)","v":0}]
["3) = messa fuori circolazione"]
[]
[]
["Numero di ","Targa","Marca","Km dal 1.01","Km dal 31.12","Km","Km","percento","mc",null,"Totale "]
["matricola",null,null,"o alla data","o alla data","annui","nel",null,"del","al","giorni","Importo"]
["secondo licenza",null,null,"della mc 2)","della mfc 3)",null,"traffico",null,"(g.m.a 1)"]
["di circolazione",null,null,null,null,null,"di linea"]
[null,null,null,null,null,{"$f":"E47-D47","v":0},null,{"$f":" IF(F47>0,ROUNDUP(G47/F47,6),0)","v":0},null,null,{"$f":"IF(SUM(J47-I47+1)>365,365,SUM(J47-I47+1))","v":1},{"$f":"ROUNDUP(K47*3300*H47/365*20,0)/20","v":0}]
[null,null,null,null,null,{"$f":"E48-D48","v":0},null,{"$f":" IF(F48>0,ROUNDUP(G48/F48,6),0)","v":0},null,null,{"$f":"IF(SUM(J48-I48+1)>365,365,SUM(J48-I48+1))","v":1},0]
[null,null,null,null,null,{"$f":"E49-D49","v":0},null,{"$f":" IF(F49>0,ROUNDUP(G49/F49,6),0)","v":0},null,null,{"$f":"IF(SUM(J49-I49+1)>365,365,SUM(J49-I49+1))","v":1},0]
[null,null,null,null,null,0,null,0,null,null,1,0]
[null,null,null,null,null,0,null,0,null,null,1,0]
[null,null,null,null,null,0,null,0,null,null,1,0]
[null,null,null,null,null,0,null,0,null,null,1,0]
[null,null,null,null,null,0,null,0,null,null,1,0]
[null,null,null,null,null,0,null,0,null,null,1,0]
[null,null,null,null,null,0,null,0,null,null,1,0]
[null,null,null,null,null,0,null,0,null,null,1,0]
[null,null,null,null,null,0,null,0,null,null,1,0]
[null,null,null,null,null,0,null,0,null,null,1,0]
[null,null,null,null,null,0,null,0,null,null,1,0]
[null,null,null,null,null,0,null,0,null,null,1,0]
[null,null,null,null,null,0,null,0,null,null,1,0]
[null,null,null,null,null,0,null,0,null,null,1,0]
[null,null,null,null,null,0,null,0,null,null,1,0]
[null,null,null,null,null,0,null,0,null,null,1,0]
[null,null,null,null,null,0,null,0,null,null,1,0]
[null,null,null,null,null,0,null,0,null,null,1,0]
[null,null,null,null,null,0,null,0,null,null,1,0]
[null,null,null,null,null,0,null,0,null,null,1,0]
[null,null,null,null,null,0,null,0,null,null,1,0]
[null,null,null,null,null,0,null,0,null,null,1,0]
[null,null,null,null,null,0,null,0,null,null,1,0]
[null,null,null,null,null,0,null,0,null,null,1,0]
[null,null,null,null,null,0,null,0,null,null,1,0]
[null,null,null,null,null,0,null,0,null,null,1,0]
[null,null,null,null,null,0,null,0,null,null,1,0]
[null,null,null,null,null,0,null,0,null,null,1,0]
[null,null,null,null,null,0,null,0,null,null,1,{"$f":"ROUNDUP(K78*3300*H78/365*20,0)/20","v":0}]
[]
[null,null,null,null,null,null,null,null,null,null,null,{"$f":"SUM(L47:L78)","v":0}]
["1) = giorno, mese, anno"]
["2) = messa in circolazione",null,null,null,null,null,null,null,null,"Total",null,{"$f":"L39+L80","v":0}]
["3) = messa fuori circolazione"]
[]
[]
["Numero di ","Targa","Marca","Km dal 1.01","Km dal 31.12","Km","Km","percento","mc",null,"Totale "]
["matricola",null,null,"o alla data","o alla data","annui","nel",null,"del","al","giorni","Importo"]
["secondo licenza",null,null,"della mc 2)","della mfc 3)",null,"traffico",null,"(g.m.a 1)"]
["di circolazione",null,null,null,null,null,"di linea"]
[null,null,null,null,null,{"$f":"E90-D90","v":0},null,{"$f":" IF(F90>0,ROUNDUP(G90/F90,6),0)","v":0},null,null,{"$f":"IF(SUM(J90-I90+1)>365,365,SUM(J90-I90+1))","v":1},{"$f":"ROUNDUP(K90*3300*H90/365*20,0)/20","v":0}]
[null,null,null,null,null,0,null,0,null,null,1,0]
[null,null,null,null,null,0,null,0,null,null,1,0]
[null,null,null,null,null,0,null,0,null,null,1,0]
[null,null,null,null,null,0,null,0,null,null,1,0]
[null,null,null,null,null,0,null,0,null,null,1,0]
[null,null,null,null,null,0,null,0,null,null,1,0]
[null,null,null,null,null,0,null,0,null,null,1,0]
[null,null,null,null,null,0,null,0,null,null,1,0]
[null,null,null,null,null,0,null,0,null,null,1,0]
[null,null,null,null,null,0,null,0,null,null,1,0]
[null,null,null,null,null,0,null,0,null,null,1,0]
[null,null,null,null,null,0,null,0,null,null,1,0]
[null,null,null,null,null,0,null,0,null,null,1,0]
[null,null,null,null,null,0,null,0,null,null,1,0]
[null,null,null,null,null,{"$f":"E105-D105","v":0},null,{"$f":" IF(F105>0,ROUNDUP(G105/F105,6),0)","v":0},null,null,{"$f":"IF(SUM(J105-I105+1)>365,365,SUM(J105-I105+1))","v":1},0]
[null,null,null,null,null,{"$f":"E106-D106","v":0},null,{"$f":" IF(F106>0,ROUNDUP(G106/F106,6),0)","v":0},null,null,{"$f":"IF(SUM(J106-I106+1)>365,365,SUM(J106-I106+1))","v":1},0]
[null,null,null,null,null,{"$f":"E107-D107","v":0},null,{"$f":" IF(F107>0,ROUNDUP(G107/F107,6),0)","v":0},null,null,{"$f":"IF(SUM(J107-I107+1)>365,365,SUM(J107-I107+1))","v":1},0]
[null,null,null,null,null,{"$f":"E108-D108","v":0},null,{"$f":" IF(F108>0,ROUNDUP(G108/F108,6),0)","v":0},null,null,{"$f":"IF(SUM(J108-I108+1)>365,365,SUM(J108-I108+1))","v":1},0]
[null,null,null,null,null,{"$f":"E109-D109","v":0},null,{"$f":" IF(F109>0,ROUNDUP(G109/F109,6),0)","v":0},null,null,{"$f":"IF(SUM(J109-I109+1)>365,365,SUM(J109-I109+1))","v":1},0]
[null,null,null,null,null,{"$f":"E110-D110","v":0},null,{"$f":" IF(F110>0,ROUNDUP(G110/F110,6),0)","v":0},null,null,{"$f":"IF(SUM(J110-I110+1)>365,365,SUM(J110-I110+1))","v":1},0]
[null,null,null,null,null,0,null,0,null,null,1,0]
[null,null,null,null,null,0,null,0,null,null,1,0]
[null,null,null,null,null,0,null,0,null,null,1,0]
[null,null,null,null,null,0,null,0,null,null,1,0]
[null,null,null,null,null,0,null,0,null,null,1,0]
[null,null,null,null,null,0,null,0,null,null,1,0]
[null,null,null,null,null,0,null,0,null,null,1,0]
[null,null,null,null,null,0,null,0,null,null,1,0]
[null,null,null,null,null,0,null,0,null,null,1,0]
[null,null,null,null,null,0,null,0,null,null,1,0]
[null,null,null,null,null,0,null,0,null,null,1,{"$f":"ROUNDUP(K121*3300*H121/365*20,0)/20","v":0}]
[]
[null,null,null,null,null,null,null,null,null,null,null,{"$f":"SUM(L90:L121)","v":0}]
["1) = giorno, mese, anno"]
["2) = messa in circolazione",null,null,null,null,null,null,null,null,"Total",null,{"$f":"L123+L80+L39","v":0}]
["3) = messa fuori circolazione"]

{"sheet":"über 18 - 26 t","index":3,"n_rows":130,"n_cols":12,"rows_kept":130,"cut":false,"hidden":false,"merged":[]}
[]
[]
[]
[]
[]
["Dichiarazione di restituzione per i veicoli d'un peso totale superiore a 19,5 t ma non eccedente 26 t (aliquota fr. 4400,-)"]
[]
["Numero di ","Targa","Marca","Km dal 1.01","Km dal 31.12","Km","Km","percento","mc",null,"Totale "]
["matricola",null,null,"o alla data","o alla data","annui","nel",null,"del","al","giorni","Importo"]
["secondo licenza",null,null,"della mc 2)","della mfc 3)",null,"traffico",null,"(g.m.a 1)"]
["di circolazione",null,null,null,null,null,"di linea"]
[null,null,null,null,null,{"$f":"E12-D12","v":0},null,{"$f":" IF(F12>0,ROUNDUP(G12/F12,6),0)","v":0},null,null,{"$f":"IF(SUM(J12-I12+1)>365,365,SUM(J12-I12+1))","v":1},{"$f":"ROUNDUP(K12*4400*H12/365*20,0)/20","v":0}]
[null,null,null,null,null,0,null,0,null,null,1,{"$f":"ROUNDUP(K13*4400*H13/365*20,0)/20","v":0}]
[null,null,null,null,null,0,null,0,null,null,1,0]
[null,null,null,null,null,0,null,0,null,null,1,0]
[null,null,null,null,null,0,null,0,null,null,1,0]
[null,null,null,null,null,0,null,0,null,null,1,0]
[null,null,null,null,null,0,null,0,null,null,1,0]
[null,null,null,null,null,0,null,0,null,null,1,0]
[null,null,null,null,null,0,null,0,null,null,1,0]
[null,null,null,null,null,0,null,0,null,null,1,0]
[null,null,null,null,null,0,null,0,null,null,1,0]
[null,null,null,null,null,0,null,0,null,null,1,0]
[null,null,null,null,null,0,null,0,null,null,1,0]
[null,null,null,null,null,0,null,0,null,null,1,0]
[null,null,null,null,null,0,null,0,null,null,1,0]
[null,null,null,null,null,0,null,0,null,null,1,0]
[null,null,null,null,null,0,null,0,null,null,1,0]
[null,null,null,null,null,0,null,0,null,null,1,0]
[null,null,null,null,null,0,null,0,null,null,1,0]
[null,null,null,null,null,0,null,0,null,null,1,0]
[null,null,null,null,null,0,null,0,null,null,1,0]
[null,null,null,null,null,0,null,0,null,null,1,0]
[null,null,null,null,null,0,null,0,null,null,1,0]
[null,null,null,null,null,0,null,0,null,null,1,0]
[null,null,null,null,null,0,null,0,null,null,1,0]
[null,null,null,null,null,0,null,0,null,null,1,0]
[null,null,null,null,null,0,null,0,null,null,1,0]
[null,null,null,null,null,0,null,0,null,null,1,0]
[null,null,null,null,null,0,null,0,null,null,1,{"$f":"ROUNDUP(K40*4400*H40/365*20,0)/20","v":0}]
[]
["1) = giorno, mese, anno",null,null,null,null,null,null,null,null,"Total",null,{"$f":"SUM(L12:L40)","v":0}]
["2) = messa in circolazione"]
["3) = messa fuori circolazione"]
[]
[]
["Numero di ","Targa","Marca","Km dal 1.01","Km dal 31.12","Km","Km","percento","mc",null,"Totale "]
["matricola",null,null,"o alla data","o alla data","annui","nel",null,"del","al","giorni","Importo"]
["secondo licenza",null,null,"della mc 2)","della mfc 3)",null,"traffico",null,"(g.m.a 1)"]
["di circolazione",null,null,null,null,null,"di linea"]
[null,null,null,null,null,{"$f":"E51-D51","v":0},null,{"$f":" IF(F51>0,ROUNDUP(G51/F51,6),0)","v":0},null,null,{"$f":"IF(SUM(J51-I51+1)>365,365,SUM(J51-I51+1))","v":1},{"$f":"ROUNDUP(K51*4400*H51/365*20,0)/20","v":0}]
[null,null,null,null,null,{"$f":"E52-D52","v":0},null,{"$f":" IF(F52>0,ROUNDUP(G52/F52,6),0)","v":0},null,null,{"$f":"IF(SUM(J52-I52+1)>365,365,SUM(J52-I52+1))","v":1},0]
[null,null,null,null,null,{"$f":"E53-D53","v":0},null,{"$f":" IF(F53>0,ROUNDUP(G53/F53,6),0)","v":0},null,null,{"$f":"IF(SUM(J53-I53+1)>365,365,SUM(J53-I53+1))","v":1},0]
[null,null,null,null,null,0,null,0,null,null,1,0]
[null,null,null,null,null,0,null,0,null,null,1,0]
[null,null,null,null,null,0,null,0,null,null,1,0]
[null,null,null,null,null,0,null,0,null,null,1,0]
[null,null,null,null,null,0,null,0,null,null,1,0]
[null,null,null,null,null,0,null,0,null,null,1,0]
[null,null,null,null,null,0,null,0,null,null,1,0]
[null,null,null,null,null,0,null,0,null,null,1,0]
[null,null,null,null,null,0,null,0,null,null,1,0]
[null,null,null,null,null,0,null,0,null,null,1,0]
[null,null,null,null,null,0,null,0,null,null,1,0]
[null,null,null,null,null,0,null,0,null,null,1,0]
[null,null,null,null,null,0,null,0,null,null,1,0]
[null,null,null,null,null,0,null,0,null,null,1,0]
[null,null,null,null,null,0,null,0,null,null,1,0]
[null,null,null,null,null,0,null,0,null,null,1,0]
[null,null,null,null,null,0,null,0,null,null,1,0]
[null,null,null,null,null,0,null,0,null,null,1,0]
[null,null,null,null,null,0,null,0,null,null,1,0]
[null,null,null,null,null,0,null,0,null,null,1,0]
[null,null,null,null,null,0,null,0,null,null,1,0]
[null,null,null,null,null,0,null,0,null,null,1,0]
[null,null,null,null,null,0,null,0,null,null,1,0]
[null,null,null,null,null,0,null,0,null,null,1,0]
[null,null,null,null,null,0,null,0,null,null,1,0]
[null,null,null,null,null,0,null,0,null,null,1,0]
[null,null,null,null,null,0,null,0,null,null,1,0]
[null,null,null,null,null,0,null,0,null,null,1,0]
[null,null,null,null,null,0,null,0,null,null,1,{"$f":"ROUNDUP(K82*4400*H82/365*20,0)/20","v":0}]
[]
[null,null,null,null,null,null,null,null,null,null,null,{"$f":"SUM(L51:L82)","v":0}]
["1) = giorno, mese, anno"]
["2) = messa in circolazione",null,null,null,null,null,null,null,null,"Total",null,{"$f":"L42+L84","v":0}]
["3) = messa fuori circolazione"]
[]
[]
["Numero di ","Targa","Marca","Km dal 1.01","Km dal 31.12","Km","Km","percento","mc",null,"Totale "]
["matricola",null,null,"o alla data","o alla data","annui","nel",null,"del","al","giorni","Importo"]
["secondo licenza",null,null,"della mc 2)","della mfc 3)",null,"traffico",null,"(g.m.a 1)"]
["di circolazione",null,null,null,null,null,"di linea"]
[null,null,null,null,null,{"$f":"E94-D94","v":0},null,{"$f":" IF(F94>0,ROUNDUP(G94/F94,6),0)","v":0},null,null,{"$f":"IF(SUM(J94-I94+1)>365,365,SUM(J94-I94+1))","v":1},{"$f":"ROUNDUP(K94*4400*H94/365*20,0)/20","v":0}]
[null,null,null,null,null,0,null,0,null,null,1,0]
[null,null,null,null,null,0,null,0,null,null,1,0]
[null,null,null,null,null,0,null,0,null,null,1,0]
[null,null,null,null,null,0,null,0,null,null,1,0]
[null,null,null,null,null,0,null,0,null,null,1,0]
[null,null,null,null,null,0,null,0,null,null,1,0]
[null,null,null,null,null,0,null,0,null,null,1,0]
[null,null,null,null,null,0,null,0,null,null,1,0]
[null,null,null,null,null,0,null,0,null,null,1,0]
[null,null,null,null,null,0,null,0,null,null,1,0]
[null,null,null,null,null,0,null,0,null,null,1,0]
[null,null,null,null,null,0,null,0,null,null,1,0]
[null,null,null,null,null,0,null,0,null,null,1,0]
[null,null,null,null,null,0,null,0,null,null,1,0]
[null,null,null,null,null,{"$f":"E109-D109","v":0},null,{"$f":" IF(F109>0,ROUNDUP(G109/F109,6),0)","v":0},null,null,{"$f":"IF(SUM(J109-I109+1)>365,365,SUM(J109-I109+1))","v":1},0]
[null,null,null,null,null,{"$f":"E110-D110","v":0},null,{"$f":" IF(F110>0,ROUNDUP(G110/F110,6),0)","v":0},null,null,{"$f":"IF(SUM(J110-I110+1)>365,365,SUM(J110-I110+1))","v":1},0]
[null,null,null,null,null,{"$f":"E111-D111","v":0},null,{"$f":" IF(F111>0,ROUNDUP(G111/F111,6),0)","v":0},null,null,{"$f":"IF(SUM(J111-I111+1)>365,365,SUM(J111-I111+1))","v":1},0]
[null,null,null,null,null,{"$f":"E112-D112","v":0},null,{"$f":" IF(F112>0,ROUNDUP(G112/F112,6),0)","v":0},null,null,{"$f":"IF(SUM(J112-I112+1)>365,365,SUM(J112-I112+1))","v":1},0]
[null,null,null,null,null,{"$f":"E113-D113","v":0},null,{"$f":" IF(F113>0,ROUNDUP(G113/F113,6),0)","v":0},null,null,{"$f":"IF(SUM(J113-I113+1)>365,365,SUM(J113-I113+1))","v":1},0]
[null,null,null,null,null,{"$f":"E114-D114","v":0},null,{"$f":" IF(F114>0,ROUNDUP(G114/F114,6),0)","v":0},null,null,{"$f":"IF(SUM(J114-I114+1)>365,365,SUM(J114-I114+1))","v":1},0]
[null,null,null,null,null,0,null,0,null,null,1,0]
[null,null,null,null,null,0,null,0,null,null,1,0]
[null,null,null,null,null,0,null,0,null,null,1,0]
[null,null,null,null,null,0,null,0,null,null,1,0]
[null,null,null,null,null,0,null,0,null,null,1,0]
[null,null,null,null,null,0,null,0,null,null,1,0]
[null,null,null,null,null,0,null,0,null,null,1,0]
[null,null,null,null,null,0,null,0,null,null,1,0]
[null,null,null,null,null,0,null,0,null,null,1,0]
[null,null,null,null,null,0,null,0,null,null,1,0]
[null,null,null,null,null,0,null,0,null,null,1,{"$f":"ROUNDUP(K125*4400*H125/365*20,0)/20","v":0}]
[]
[null,null,null,null,null,null,null,null,null,null,null,{"$f":"SUM(L94:L125)","v":0}]
["1) = giorno, mese, anno"]
["2) = messa in circolazione",null,null,null,null,null,null,null,null,"Total",null,{"$f":"L127+L86","v":0}]
["3) = messa fuori circolazione"]

{"sheet":"über 26 t","index":4,"n_rows":130,"n_cols":12,"rows_kept":130,"cut":false,"hidden":false,"merged":[]}
[]
[]
[]
[]
[]
["Dichiarazione di restituzione per i veicoli di linea d'un peso totale superiore a 26 t (aliquota fr. 5000,-)"]
[]
["Numero di ","Targa","Marca","Km dal 1.01","Km dal 31.12","Km","Km","percento","mc",null,"Totale "]
["matricola",null,null,"o alla data","o alla data","annui","nel",null,"del","al","giorni","Importo"]
["secondo licenza",null,null,"della mc 2)","della mfc 3)",null,"traffico",null,"(g.m.a 1)"]
["di circolazione",null,null,null,null,null,"di linea"]
[null,null,null,null,null,{"$f":"E12-D12","v":0},null,{"$f":" IF(F12>0,ROUNDUP(G12/F12,6),0)","v":0},null,null,{"$f":"IF(SUM(J12-I12+1)>365,365,SUM(J12-I12+1))","v":1},{"$f":"ROUNDUP(K12*5000*H12/365*20,0)/20","v":0}]
[null,null,null,null,null,0,null,0,null,null,1,{"$f":"ROUNDUP(K13*5000*H13/365*20,0)/20","v":0}]
[null,null,null,null,null,0,null,0,null,null,1,0]
[null,null,null,null,null,0,null,0,null,null,1,0]
[null,null,null,null,null,0,null,0,null,null,1,0]
[null,null,null,null,null,0,null,0,null,null,1,0]
[null,null,null,null,null,0,null,0,null,null,1,0]
[null,null,null,null,null,0,null,0,null,null,1,0]
[null,null,null,null,null,0,null,0,null,null,1,0]
[null,null,null,null,null,0,null,0,null,null,1,0]
[null,null,null,null,null,0,null,0,null,null,1,0]
[null,null,null,null,null,0,null,0,null,null,1,0]
[null,null,null,null,null,0,null,0,null,null,1,0]
[null,null,null,null,null,0,null,0,null,null,1,0]
[null,null,null,null,null,0,null,0,null,null,1,0]
[null,null,null,null,null,0,null,0,null,null,1,0]
[null,null,null,null,null,0,null,0,null,null,1,0]
[null,null,null,null,null,0,null,0,null,null,1,0]
[null,null,null,null,null,0,null,0,null,null,1,0]
[null,null,null,null,null,0,null,0,null,null,1,0]
[null,null,null,null,null,0,null,0,null,null,1,0]
[null,null,null,null,null,0,null,0,null,null,1,0]
[null,null,null,null,null,0,null,0,null,null,1,0]
[null,null,null,null,null,0,null,0,null,null,1,0]
[null,null,null,null,null,0,null,0,null,null,1,0]
[null,null,null,null,null,0,null,0,null,null,1,0]
[null,null,null,null,null,0,null,0,null,null,1,0]
[null,null,null,null,null,0,null,0,null,null,1,0]
[null,null,null,null,null,0,null,0,null,null,1,{"$f":"ROUNDUP(K40*5000*H40/365*20,0)/20","v":0}]
[]
["1) = giorno, mese, anno",null,null,null,null,null,null,null,null,"Total",null,{"$f":"SUM(L12:L40)","v":0}]
["2) = messa in circolazione"]
["3) = messa fuori circolazione"]
[]
[]
["Numero di ","Targa","Marca","Km dal 1.01","Km dal 31.12","Km","Km","percento","mc",null,"Totale "]
["matricola",null,null,"o alla data","o alla data","annui","nel",null,"del","al","giorni","Importo"]
["secondo licenza",null,null,"della mc 2)","della mfc 3)",null,"traffico",null,"(g.m.a 1)"]
["di circolazione",null,null,null,null,null,"di linea"]
[null,null,null,null,null,{"$f":"E51-D51","v":0},null,{"$f":" IF(F51>0,ROUNDUP(G51/F51,6),0)","v":0},null,null,{"$f":"IF(SUM(J51-I51+1)>365,365,SUM(J51-I51+1))","v":1},{"$f":"ROUNDUP(K51*5000*H51/365*20,0)/20","v":0}]
[null,null,null,null,null,{"$f":"E52-D52","v":0},null,{"$f":" IF(F52>0,ROUNDUP(G52/F52,6),0)","v":0},null,null,{"$f":"IF(SUM(J52-I52+1)>365,365,SUM(J52-I52+1))","v":1},0]
[null,null,null,null,null,{"$f":"E53-D53","v":0},null,{"$f":" IF(F53>0,ROUNDUP(G53/F53,6),0)","v":0},null,null,{"$f":"IF(SUM(J53-I53+1)>365,365,SUM(J53-I53+1))","v":1},0]
[null,null,null,null,null,0,null,0,null,null,1,0]
[null,null,null,null,null,0,null,0,null,null,1,0]
[null,null,null,null,null,0,null,0,null,null,1,0]
[null,null,null,null,null,0,null,0,null,null,1,0]
[null,null,null,null,null,0,null,0,null,null,1,0]
[null,null,null,null,null,0,null,0,null,null,1,0]
[null,null,null,null,null,0,null,0,null,null,1,0]
[null,null,null,null,null,0,null,0,null,null,1,0]
[null,null,null,null,null,0,null,0,null,null,1,0]
[null,null,null,null,null,0,null,0,null,null,1,0]
[null,null,null,null,null,0,null,0,null,null,1,0]
[null,null,null,null,null,0,null,0,null,null,1,0]
[null,null,null,null,null,0,null,0,null,null,1,0]
[null,null,null,null,null,0,null,0,null,null,1,0]
[null,null,null,null,null,0,null,0,null,null,1,0]
[null,null,null,null,null,0,null,0,null,null,1,0]
[null,null,null,null,null,0,null,0,null,null,1,0]
[null,null,null,null,null,0,null,0,null,null,1,0]
[null,null,null,null,null,0,null,0,null,null,1,0]
[null,null,null,null,null,0,null,0,null,null,1,0]
[null,null,null,null,null,0,null,0,null,null,1,0]
[null,null,null,null,null,0,null,0,null,null,1,0]
[null,null,null,null,null,0,null,0,null,null,1,0]
[null,null,null,null,null,0,null,0,null,null,1,0]
[null,null,null,null,null,0,null,0,null,null,1,0]
[null,null,null,null,null,0,null,0,null,null,1,0]
[null,null,null,null,null,0,null,0,null,null,1,0]
[null,null,null,null,null,0,null,0,null,null,1,0]
[null,null,null,null,null,0,null,0,null,null,1,{"$f":"ROUNDUP(K82*5000*H82/365*20,0)/20","v":0}]
[]
[null,null,null,null,null,null,null,null,null,null,null,{"$f":"SUM(L51:L82)","v":0}]
["1) = giorno, mese, anno"]
["2) = messa in circolazione",null,null,null,null,null,null,null,null,"Total",null,{"$f":"L42+L84","v":0}]
["3) = messa fuori circolazione"]
[]
[]
["Numero di ","Targa","Marca","Km dal 1.01","Km dal 31.12","Km","Km","percento","mc",null,"Totale "]
["matricola",null,null,"o alla data","o alla data","annui","nel",null,"del","al","giorni","Importo"]
["secondo licenza",null,null,"della mc 2)","della mfc 3)",null,"traffico",null,"(g.m.a 1)"]
["di circolazione",null,null,null,null,null,"di linea"]
[null,null,null,null,null,{"$f":"E94-D94","v":0},null,{"$f":" IF(F94>0,ROUNDUP(G94/F94,6),0)","v":0},null,null,{"$f":"IF(SUM(J94-I94+1)>365,365,SUM(J94-I94+1))","v":1},{"$f":"ROUNDUP(K94*5000*H94/365*20,0)/20","v":0}]
[null,null,null,null,null,0,null,0,null,null,1,0]
[null,null,null,null,null,0,null,0,null,null,1,0]
[null,null,null,null,null,0,null,0,null,null,1,0]
[null,null,null,null,null,0,null,0,null,null,1,0]
[null,null,null,null,null,0,null,0,null,null,1,0]
[null,null,null,null,null,0,null,0,null,null,1,0]
[null,null,null,null,null,0,null,0,null,null,1,0]
[null,null,null,null,null,0,null,0,null,null,1,0]
[null,null,null,null,null,0,null,0,null,null,1,0]
[null,null,null,null,null,0,null,0,null,null,1,0]
[null,null,null,null,null,0,null,0,null,null,1,0]
[null,null,null,null,null,0,null,0,null,null,1,0]
[null,null,null,null,null,0,null,0,null,null,1,0]
[null,null,null,null,null,0,null,0,null,null,1,0]
[null,null,null,null,null,{"$f":"E109-D109","v":0},null,{"$f":" IF(F109>0,ROUNDUP(G109/F109,6),0)","v":0},null,null,{"$f":"IF(SUM(J109-I109+1)>365,365,SUM(J109-I109+1))","v":1},0]
[null,null,null,null,null,{"$f":"E110-D110","v":0},null,{"$f":" IF(F110>0,ROUNDUP(G110/F110,6),0)","v":0},null,null,{"$f":"IF(SUM(J110-I110+1)>365,365,SUM(J110-I110+1))","v":1},0]
[null,null,null,null,null,{"$f":"E111-D111","v":0},null,{"$f":" IF(F111>0,ROUNDUP(G111/F111,6),0)","v":0},null,null,{"$f":"IF(SUM(J111-I111+1)>365,365,SUM(J111-I111+1))","v":1},0]
[null,null,null,null,null,{"$f":"E112-D112","v":0},null,{"$f":" IF(F112>0,ROUNDUP(G112/F112,6),0)","v":0},null,null,{"$f":"IF(SUM(J112-I112+1)>365,365,SUM(J112-I112+1))","v":1},0]
[null,null,null,null,null,{"$f":"E113-D113","v":0},null,{"$f":" IF(F113>0,ROUNDUP(G113/F113,6),0)","v":0},null,null,{"$f":"IF(SUM(J113-I113+1)>365,365,SUM(J113-I113+1))","v":1},0]
[null,null,null,null,null,{"$f":"E114-D114","v":0},null,{"$f":" IF(F114>0,ROUNDUP(G114/F114,6),0)","v":0},null,null,{"$f":"IF(SUM(J114-I114+1)>365,365,SUM(J114-I114+1))","v":1},0]
[null,null,null,null,null,0,null,0,null,null,1,0]
[null,null,null,null,null,0,null,0,null,null,1,0]
[null,null,null,null,null,0,null,0,null,null,1,0]
[null,null,null,null,null,0,null,0,null,null,1,0]
[null,null,null,null,null,0,null,0,null,null,1,0]
[null,null,null,null,null,0,null,0,null,null,1,0]
[null,null,null,null,null,0,null,0,null,null,1,0]
[null,null,null,null,null,0,null,0,null,null,1,0]
[null,null,null,null,null,0,null,0,null,null,1,0]
[null,null,null,null,null,0,null,0,null,null,1,0]
[null,null,null,null,null,0,null,0,null,null,1,{"$f":"ROUNDUP(K125*5000*H125/365*20,0)/20","v":0}]
[]
[null,null,null,null,null,null,null,null,null,null,null,{"$f":"SUM(L94:L125)","v":0}]
["1) = giorno, mese, anno"]
["2) = messa in circolazione",null,null,null,null,null,null,null,null,"Total",null,{"$f":"L127+L86","v":0}]
["3) = messa fuori circolazione"]